[Event "WSCC 50 Open 2017"]
[Site "?"]
[Date "2017.11.10"]
[Round "4"]
[White "Jhunjhnuwala, Krishan"]
[Black "Madeira, Wagner Martins"]
[Result "1/2-1/2"]
[ECO "B01"]
[WhiteElo "2340"]
[BlackElo "2139"]
[PlyCount "86"]
[EventDate "2017.??.??"]
[EventType "swiss"]
[EventCountry "ITA"]
[SourceTitle "Acqui Terme"]
[TimeControl "40/5400+30:1800+30"]
[WhiteClock "0:30:00"]
[BlackClock "0:23:54"]

1. e4 {[%emt 0:00:00]} d5 {[%emt 0:00:18]} 2. exd5 {[%emt 0:00:00]} Nf6 {[%emt 0:00:10]} 3. d4 {[%emt 0:00:25]} Nxd5 {[%emt 0:00:13]} 4. c4 {[%emt 0:00:46]} Nb6 {[%emt 0:00:11]} 5. Nc3 {[%emt 0:00:32]} g6 {[%emt 0:00:31]} 6. h3 {[%emt 0:04:58]} Bg7 {[%emt 0:01:23]} 7. Nf3 {[%emt 0:00:21]} O-O {[%emt 0:01:04]} 8. Be2 {[%emt 0:00:33]} Nc6 {[%emt 0:00:13]} 9. Be3 {[%emt 0:00:46]} e5 {[%emt 0:00:48]} 10. d5 {[%emt 0:05:10]} Ne7 {[%emt 0:00:29]} 11. a4 {[%emt 0:04:47]} Nf5 {[%emt 0:02:11]} 12. Bg5 {[%emt 0:07:44]} f6 {[%emt 0:00:32]} 13. Bc1 {[%emt 0:01:01]} Re8 {[%emt 0:04:27]} 14. a5 {[%emt 0:05:27]} Nd7 {[%emt 0:03:52]} 15. Ne4 Nd6 {[%emt 0:04:41]} 16. Nxd6 {[%emt 0:07:58]} cxd6 {[%emt 0:00:12]} 17. O-O f5 {[%emt 0:03:00]} 18. Re1 {[%emt 0:06:49]} Qf6 {[%emt 0:23:39]} 19. Ra2 {[%emt 0:06:36]} h6 {[%emt 0:05:08]} 20. b4 {[%emt 0:01:48]} Nf8 {[%emt 0:03:34]} 21. Bf1 {[%emt 0:05:37]} Bd7 {[%emt 0:01:29]} 22. c5 {[%emt 0:02:04]} g5 {[%emt 0:03:46]} 23. a6 {[%emt 0:02:59]} bxa6 {[%emt 0:03:03]} 24. Rxa6 {[%emt 0:02:00]} e4 {[%emt 0:05:56]} 25. Rxd6 {[%emt 0:01:48]} Qa1 {[%emt 0:00:16]} 26. Nd2 {[%emt 0:02:35]} Ba4 {[%emt 0:01:08]} 27. Qe2 {[%emt 0:06:12]} Rab8 {[%emt 0:04:13]} 28. Nc4 {[%emt 0:02:40]} Bb5 {[%emt 0:04:22]} 29. Qc2 {[%emt 0:01:43]} Ba4 {[%emt 0:02:26]} 30. Qe2 {[%emt 0:00:30]} Bb5 {[%emt 0:00:05]} 31. Bb2 {[%emt 0:06:01]} Qxb2 {[%emt 0:01:30]} 32. Qxb2 {[%emt 0:01:21]} Bxb2 {[%emt 0:00:09]} 33. Nxb2 {[%emt 0:00:12]} Bxf1 {[%emt 0:00:06]} 34. Kxf1 {[%emt 0:00:15]} Rxb4 {[%emt 0:00:07]} 35. Nd1 {[%emt 0:00:40]} f4 {[%emt 0:05:44]} 36. Rxh6 {[%emt 0:00:51]} Rc4 {[%emt 0:00:52]} 37. c6 {[%emt 0:01:29]} Rd8 {[%emt 0:02:02]} 38. Nb2 {[%emt 0:03:55]} Rc2 {[%emt 0:02:43]} 39. Rxe4 {[%emt 0:03:08]} Rxd5 {[%emt 0:04:18]} 40. Re2 {[%emt 0:06:04]} Rc1+ {[%emt 0:35:29]} 41. Re1 {[%emt 0:30:19]} Rc2 {[%emt 0:00:21]} 42. Re2 {[%emt 0:00:00]} Rc1+ {[%emt 0:00:00]} 43. Re1 {[%emt 0:00:00]} Rc2 {[%emt 0:00:00]} 1/2-1/2

[Event "WSCC 50 Open 2017"]
[Site "?"]
[Date "2017.11.10"]
[Round "4"]
[White "Brendel, Oliver"]
[Black "Chapman, Terry P D"]
[Result "1-0"]
[ECO "A13"]
[WhiteElo "2334"]
[BlackElo "2196"]
[PlyCount "52"]
[EventDate "2017.??.??"]
[EventType "swiss"]
[EventCountry "ITA"]
[SourceTitle "Acqui Terme"]
[TimeControl "40/5400+30:1800+30"]
[WhiteClock "0:10:33"]
[BlackClock "0:02:29"]

1. c4 {[%emt 0:00:00]} Nf6 {[%emt 0:00:08]} 2. g3 {[%emt 0:00:00]} e6 {[%emt 0:00:13]} 3. Bg2 {[%emt 0:00:00]} d5 {[%emt 0:00:01]} 4. Nf3 {[%emt 0:00:14]} dxc4 {[%emt 0:00:07]} 5. Na3 {[%emt 0:00:54]} Bxa3 {[%emt 0:00:10]} 6. bxa3 {[%emt 0:00:08]} Nc6 {[%emt 0:00:20]} 7. Bb2 {[%emt 0:01:37]} O-O {[%emt 0:00:12]} 8. Rc1 {[%emt 0:05:08]} Qd6 {[%emt 0:12:57]} 9. Bxf6 gxf6 {[%emt 0:00:02]} 10. Rxc4 {[%emt 0:09:51]} e5 {[%emt 0:02:40]} 11. Qb1 f5 12. d3 {[%emt 0:21:36]} Be6 {[%emt 0:26:22]} 13. Rh4 {[%emt 0:02:48]} f6 {[%emt 0:02:16]} 14. O-O {[%emt 0:01:33]} Rab8 {[%emt 0:00:38]} 15. Qb2 {[%emt 0:13:09]} b6 {[%emt 0:12:56]} 16. Rc1 {[%emt 0:08:15]} Na5 {[%emt 0:01:05]} 17. Bh3 {[%emt 0:07:46]} c5 {[%emt 0:02:02]} 18. Rh5 {[%emt 0:05:10]} Bf7 {[%emt 0:12:23]} 19. Rh6 {[%emt 0:03:51]} Bg6 {[%emt 0:02:55]} 20. Nh4 {[%emt 0:00:36]} Kg7 {[%emt 0:01:23]} 21. Rh5 {[%emt 0:03:00]} Kg8 {[%emt 0:12:55]} 22. Nxf5 {[%emt 0:01:28]} Bxf5 {[%emt 0:00:40]} 23. Bxf5 {[%emt 0:00:00]} Rf7 {[%emt 0:00:15]} 24. Qd2 {[%emt 0:01:55]} Re8 {[%emt 0:04:42]} 25. Qh6 {[%emt 0:01:18]} Ree7 {[%emt 0:00:20]} 26. Rg5+ {[%emt 0:02:10]} Rg7 {[%emt 0:03:19]} 1-0

[Event "WSCC 50 Open 2017"]
[Site "?"]
[Date "2017.11.10"]
[Round "4"]
[White "Mantovani, Renzo"]
[Black "Grant, Jonathan I M"]
[Result "1/2-1/2"]
[ECO "E11"]
[WhiteElo "2307"]
[BlackElo "2179"]
[PlyCount "116"]
[EventDate "2017.??.??"]
[EventType "swiss"]
[EventCountry "ITA"]
[SourceTitle "Acqui Terme"]
[TimeControl "40/5400+30:1800+30"]
[WhiteClock "0:05:50"]
[BlackClock "0:02:56"]

1. d4 {[%emt 0:00:24]} Nf6 {[%emt 0:00:55]} 2. c4 {[%emt 0:00:16]} e6 {[%emt 0:00:14]} 3. Nf3 {[%emt 0:00:20]} Bb4+ {[%emt 0:00:49]} 4. Bd2 {[%emt 0:03:24]} a5 {[%emt 0:00:49]} 5. g3 {[%emt 0:01:44]} b6 {[%emt 0:00:17]} 6. Bg2 {[%emt 0:00:15]} Ba6 {[%emt 0:01:10]} 7. Qc2 {[%emt 0:02:11]} d5 {[%emt 0:04:14]} 8. Ne5 {[%emt 0:21:39]} O-O {[%emt 0:04:52]} 9. O-O {[%emt 0:04:29]} Ra7 {[%emt 0:02:13]} 10. Rd1 Bb7 {[%emt 0:19:38]} 11. cxd5 {[%emt 0:13:10]} exd5 {[%emt 0:00:55]} 12. Nc3 {[%emt 0:03:45]} c6 {[%emt 0:03:56]} 13. Rac1 {[%emt 0:02:03]} h6 {[%emt 0:05:42]} 14. Bf4 {[%emt 0:05:38]} Re8 {[%emt 0:02:47]} 15. Bf3 {[%emt 0:02:30]} Nbd7 {[%emt 0:08:22]} 16. a3 {[%emt 0:03:19]} Bf8 {[%emt 0:05:57]} 17. h4 {[%emt 0:00:45]} Nxe5 {[%emt 0:04:32]} 18. Bxe5 {[%emt 0:11:13]} Bd6 {[%emt 0:02:48]} 19. Bxd6 {[%emt 0:03:01]} Qxd6 {[%emt 0:00:02]} 20. e3 {[%emt 0:00:19]} Raa8 {[%emt 0:07:02]} 21. Kg2 {[%emt 0:02:26]} Re7 {[%emt 0:06:51]} 22. Na4 {[%emt 0:02:59]} Qd8 {[%emt 0:03:04]} 23. Qb3 {[%emt 0:00:57]} b5 {[%emt 0:01:29]} 24. Nc5 {[%emt 0:00:22]} a4 {[%emt 0:00:22]} 25. Nxb7 {[%emt 0:01:44]} Rxb7 {[%emt 0:00:24]} 26. Qb4 {[%emt 0:02:16]} Ra6 {[%emt 0:01:53]} 27. Rd2 {[%emt 0:00:33]} Qe7 {[%emt 0:01:08]} 28. Qxe7 {[%emt 0:04:30]} Rxe7 {[%emt 0:00:04]} 29. Rdc2 {[%emt 0:00:11]} Re6 {[%emt 0:00:42]} 30. Kf1 {[%emt 0:00:28]} h5 {[%emt 0:01:13]} 31. Ke2 {[%emt 0:00:20]} g6 {[%emt 0:01:35]} 32. Kd3 {[%emt 0:00:19]} Kf8 {[%emt 0:00:45]} 33. Bg2 {[%emt 0:01:30]} Ke7 {[%emt 0:04:34]} 34. Bh3 {[%emt 0:00:39]} Ng4 {[%emt 0:00:33]} 35. Bxg4 {[%emt 0:04:36]} hxg4 {[%emt 0:00:01]} 36. Rf1 {[%emt 0:00:57]} Ra8 {[%emt 0:02:48]} 37. f3 {[%emt 0:00:29]} gxf3 {[%emt 0:00:27]} 38. Rxf3 {[%emt 0:00:02]} Rh8 {[%emt 0:01:11]} 39. Rf4 {[%emt 0:01:08]} f5 {[%emt 0:00:49]} 40. Rh2 {[%emt 0:00:48]} Re4 {[%emt 0:31:27]} 41. Rxe4+ {[%emt 0:31:22]} dxe4+ {[%emt 0:00:53]} 42. Kc3 {[%emt 0:00:00]} Kd6 {[%emt 0:00:00]} 43. Rf2 {[%emt 0:00:00]} Rh7 {[%emt 0:00:00]} 44. Kb4 {[%emt 0:00:00]} Rh8 {[%emt 0:00:00]} 45. Rc2 {[%emt 0:00:00]} g5 {[%emt 0:00:00]} 46. Rc5 {[%emt 0:00:00]} gxh4 {[%emt 0:00:00]} 47. gxh4 {[%emt 0:00:00]} Rxh4 {[%emt 0:00:00]} 48. Rxf5 {[%emt 0:00:00]} Rh2 {[%emt 0:00:00]} 49. Rf6+ {[%emt 0:00:00]} Kc7 {[%emt 0:00:00]} 50. b3 {[%emt 0:00:16]} axb3 {[%emt 0:00:00]} 51. Kxb3 {[%emt 0:00:15]} Re2 {[%emt 0:00:00]} 52. Re6 {[%emt 0:01:15]} Rxe3+ {[%emt 0:00:00]} 53. Kb4 {[%emt 0:00:01]} Kd7 {[%emt 0:01:14]} 54. Re5 {[%emt 0:00:05]} Re1 {[%emt 0:01:06]} 55. a4 {[%emt 0:01:56]} e3 {[%emt 0:02:33]} 56. axb5 {[%emt 0:00:06]} e2 {[%emt 0:00:53]} 57. bxc6+ {[%emt 0:00:09]} Kxc6 {[%emt 0:00:57]} 58. Kc3 {[%emt 0:00:06]} Rc1+ {[%emt 0:00:24]} 1/2-1/2

[Event "WSCC 50 Open 2017"]
[Site "?"]
[Date "2017.11.10"]
[Round "4"]
[White "Tofan, Ibrahim"]
[Black "Certek, Pavel"]
[Result "0-1"]
[ECO "B20"]
[WhiteElo "2235"]
[BlackElo "2295"]
[PlyCount "121"]
[EventDate "2017.??.??"]
[EventType "swiss"]
[EventCountry "ITA"]
[SourceTitle "Acqui Terme"]
[TimeControl "40/5400+30:1800+30"]
[WhiteClock "0:01:01"]
[BlackClock "0:12:55"]

1. e4 {[%emt 0:00:00]} c5 {[%emt 0:04:56]} 2. b3 {[%emt 0:00:00]} g6 {[%emt 0:01:58]} 3. Bb2 {[%emt 0:00:09]} Nf6 {[%emt 0:00:04]} 4. g3 {[%emt 0:00:51]} Bg7 {[%emt 0:05:21]} 5. Bg2 {[%emt 0:01:33]} d6 {[%emt 0:01:32]} 6. Ne2 {[%emt 0:00:15]} Nc6 {[%emt 0:00:36]} 7. O-O {[%emt 0:00:11]} Bd7 {[%emt 0:00:51]} 8. d4 {[%emt 0:02:17]} cxd4 {[%emt 0:03:13]} 9. Nxd4 {[%emt 0:00:01]} O-O {[%emt 0:01:39]} 10. c4 {[%emt 0:00:18]} Nxd4 11. Bxd4 {[%emt 0:00:02]} Bc6 {[%emt 0:03:23]} 12. Nc3 {[%emt 0:00:42]} Qa5 {[%emt 0:02:17]} 13. Nd5 {[%emt 0:10:58]} Bxd5 {[%emt 0:00:30]} 14. exd5 {[%emt 0:00:30]} Nd7 {[%emt 0:00:30]} 15. Bxg7 {[%emt 0:00:30]} Kxg7 {[%emt 0:00:30]} 16. Re1 {[%emt 0:00:30]} Rfe8 {[%emt 0:00:30]} 17. Qd4+ {[%emt 0:00:30]} Nf6 {[%emt 0:00:30]} 18. Re2 {[%emt 0:00:30]} b5 {[%emt 0:00:30]} 19. cxb5 {[%emt 0:00:30]} Qxb5 {[%emt 0:00:30]} 20. Rae1 {[%emt 0:00:30]} Qb6 {[%emt 0:00:30]} 21. Qf4 {[%emt 0:00:30]} Ng8 {[%emt 0:00:30]} 22. h4 {[%emt 0:00:30]} a5 {[%emt 0:00:30]} 23. h5 {[%emt 0:00:30]} Qb4 {[%emt 0:00:30]} 24. Re4 {[%emt 0:00:30]} Qc3 {[%emt 0:00:30]} 25. R1e3 {[%emt 0:00:30]} Qb2 {[%emt 0:00:30]} 26. Re2 {[%emt 0:00:30]} Qc3 {[%emt 0:00:30]} 27. Re1 {[%emt 0:09:42]} Qb2 {[%emt 0:21:59]} 28. R4e2 {[%emt 0:10:17]} Qc3 {[%emt 0:01:17]} 29. Bh3 {[%emt 0:01:24]} Ra7 {[%emt 0:01:43]} 30. Rc1 {[%emt 0:03:15]} Qf6 {[%emt 0:00:59]} 31. Qe3 {[%emt 0:02:54]} Rb7 {[%emt 0:00:49]} 32. Rc4 {[%emt 0:01:03]} Rb4 {[%emt 0:00:28]} 33. Bd7 {[%emt 0:04:40]} Reb8 {[%emt 0:03:33]} 34. Rc7 {[%emt 0:01:34]} R8b7 {[%emt 0:02:06]} 35. Rxb7 {[%emt 0:00:11]} Rxb7 {[%emt 0:00:01]} 36. Bc6 {[%emt 0:00:57]} Rb4 {[%emt 0:02:02]} 37. Kg2 {[%emt 0:01:33]} Qd4 {[%emt 0:02:47]} 38. a3 {[%emt 0:02:25]} Qxe3 {[%emt 0:00:23]} 39. Rxe3 {[%emt 0:00:25]} Rb6 {[%emt 0:00:54]} 40. hxg6 {[%emt 0:00:16]} hxg6 {[%emt 0:30:11]} 41. Rc3 {[%emt 0:37:36]} e6 {[%emt 0:02:18]} 42. Kf3 {[%emt 0:07:11]} Ne7 {[%emt 0:01:17]} 43. Ke4 {[%emt 0:05:57]} f5+ {[%emt 0:05:53]} 44. Kd4 {[%emt 0:01:02]} e5+ {[%emt 0:00:38]} 45. Kd3 {[%emt 0:00:23]} Kf6 {[%emt 0:00:17]} 46. f4 {[%emt 0:02:12]} g5 {[%emt 0:01:30]} 47. Ke3 {[%emt 0:04:07]} Rb8 {[%emt 0:01:10]} 48. Kf3 {[%emt 0:05:37]} gxf4 {[%emt 0:09:02]} 49. gxf4 {[%emt 0:00:03]} Rc8 {[%emt 0:01:36]} 50. Rc4 {[%emt 0:00:59]} Ng6 {[%emt 0:01:03]} 51. b4 {[%emt 0:03:02]} axb4 {[%emt 0:00:42]} 52. Rxb4 {[%emt 0:00:55]} Nxf4 {[%emt 0:01:41]} 53. a4 {[%emt 0:00:32]} Rh8 {[%emt 0:02:18]} 54. a5 {[%emt 0:11:32]} Rh3+ {[%emt 0:01:25]} 55. Kf2 {[%emt 0:00:00]} Ra3 {[%emt 0:01:21]} 56. Ra4 {[%emt 0:01:15]} Rxa4 {[%emt 0:01:09]} 57. Bxa4 {[%emt 0:00:02]} Nxd5 {[%emt 0:00:16]} 58. a6 {[%emt 0:00:10]} Nc7 {[%emt 0:00:59]} 59. a7 {[%emt 0:00:03]} e4 {[%emt 0:00:41]} 60. Ke2 {[%emt 0:02:23]} Ke5 {[%emt 0:00:17]} 61. Kd2 {[%emt 0:00:05]} 0-1

[Event "WSCC 50 Open 2017"]
[Site "?"]
[Date "2017.11.10"]
[Round "4"]
[White "Koehler, Gerhard"]
[Black "Petran, Peter"]
[Result "1-0"]
[ECO "A10"]
[WhiteElo "2207"]
[BlackElo "2330"]
[PlyCount "161"]
[EventDate "2017.??.??"]
[EventType "swiss"]
[EventCountry "ITA"]
[SourceTitle "Acqui Terme"]
[TimeControl "40/5400+30:1800+30"]
[WhiteClock "0:04:39"]
[BlackClock "0:01:11"]

1. c4 {[%emt 0:00:00]} g6 {[%emt 0:00:26]} 2. Nc3 {[%emt 0:00:00]} Bg7 {[%emt 0:00:11]} 3. d4 {[%emt 0:00:14]} c5 {[%emt 0:00:20]} 4. e3 {[%emt 0:00:27]} cxd4 {[%emt 0:01:20]} 5. exd4 {[%emt 0:00:19]} Nf6 {[%emt 0:00:05]} 6. Nf3 {[%emt 0:06:39]} O-O {[%emt 0:01:06]} 7. Bg5 {[%emt 0:03:23]} h6 {[%emt 0:02:17]} 8. Bf4 {[%emt 0:02:01]} d5 {[%emt 0:02:12]} 9. Qd2 {[%emt 0:02:06]} Kh7 {[%emt 0:00:32]} 10. Bd3 {[%emt 0:04:15]} Nc6 {[%emt 0:00:51]} 11. O-O {[%emt 0:09:56]} Bg4 {[%emt 0:08:11]} 12. Ne5 {[%emt 0:04:36]} dxc4 13. Nxc6 {[%emt 0:04:13]} bxc6 {[%emt 0:02:52]} 14. Bxc4 Nd7 {[%emt 0:11:38]} 15. h3 {[%emt 0:06:00]} Nb6 {[%emt 0:00:38]} 16. Bb3 {[%emt 0:00:32]} Bf5 {[%emt 0:04:17]} 17. Rad1 {[%emt 0:03:22]} Qd7 {[%emt 0:06:12]} 18. Be5 {[%emt 0:02:27]} Rad8 {[%emt 0:02:40]} 19. Qe2 {[%emt 0:05:55]} Nd5 {[%emt 0:06:24]} 20. Rfe1 {[%emt 0:08:00]} Rfe8 {[%emt 0:03:50]} 21. Nxd5 {[%emt 0:07:29]} cxd5 {[%emt 0:01:01]} 22. Bxg7 {[%emt 0:00:24]} Kxg7 {[%emt 0:00:07]} 23. Qa6 {[%emt 0:01:05]} Qc7 {[%emt 0:06:12]} 24. Rc1 {[%emt 0:03:00]} Qb8 {[%emt 0:00:35]} 25. Qa5 {[%emt 0:02:29]} e6 {[%emt 0:06:31]} 26. Rc5 {[%emt 0:04:56]} Qf4 {[%emt 0:10:27]} 27. Rd1 {[%emt 0:04:00]} Be4 {[%emt 0:03:07]} 28. Qd2 {[%emt 0:01:05]} Qb8 {[%emt 0:03:20]} 29. f3 {[%emt 0:02:07]} Bxf3 {[%emt 0:02:17]} 30. gxf3 {[%emt 0:02:01]} Rc8 {[%emt 0:00:33]} 31. Qh2 {[%emt 0:01:27]} Qb4 {[%emt 0:05:05]} 32. Qe5+ {[%emt 0:04:10]} Kg8 {[%emt 0:00:51]} 33. Qe3 {[%emt 0:00:25]} Rxc5 {[%emt 0:01:05]} 34. dxc5 {[%emt 0:00:19]} Rc8 {[%emt 0:00:13]} 35. Rc1 {[%emt 0:02:40]} d4 {[%emt 0:03:56]} 36. Qe5 {[%emt 0:00:42]} d3 {[%emt 0:01:02]} 37. Qe3 {[%emt 0:03:12]} d2 {[%emt 0:01:29]} 38. Rd1 {[%emt 0:00:49]} Rxc5 {[%emt 0:00:43]} 39. Rxd2 {[%emt 0:00:21]} Kh7 {[%emt 0:04:31]} 40. Kh2 {[%emt 0:01:00]} Qb8+ {[%emt 0:30:35]} 41. f4 {[%emt 0:02:36]} Rf5 {[%emt 0:00:00]} 42. Rf2 {[%emt 0:01:08]} a5 {[%emt 0:00:00]} 43. Bc2 {[%emt 0:01:56]} Rb5 {[%emt 0:00:00]} 44. b3 {[%emt 0:00:44]} Qc7 {[%emt 0:00:00]} 45. Be4 {[%emt 0:03:25]} Rc5 {[%emt 0:00:00]} 46. Qd4 {[%emt 0:00:53]} f5 {[%emt 0:00:00]} 47. Bg2 {[%emt 0:02:47]} e5 {[%emt 0:00:00]} 48. fxe5 {[%emt 0:00:52]} Rxe5 {[%emt 0:00:00]} 49. Kg1 {[%emt 0:02:02]} h5 {[%emt 0:00:00]} 50. Qf4 {[%emt 0:03:01]} Qc5 {[%emt 0:00:00]} 51. Kh2 {[%emt 0:02:15]} Re1 {[%emt 0:00:00]} 52. Rf1 {[%emt 0:02:53]} Re7 {[%emt 0:00:00]} 53. Rc1 {[%emt 0:00:28]} Qa3 {[%emt 0:00:00]} 54. Rc8 {[%emt 0:02:23]} Qb2 {[%emt 0:00:00]} 55. Rc7 {[%emt 0:00:59]} Qg7 {[%emt 0:00:00]} 56. Rc5 {[%emt 0:00:44]} Re2 {[%emt 0:00:00]} 57. Rc7 {[%emt 0:03:06]} Re7 {[%emt 0:00:00]} 58. Rc2 {[%emt 0:00:18]} Qf6 {[%emt 0:00:00]} 59. Rd2 {[%emt 0:01:14]} g5 {[%emt 0:00:00]} 60. Qd4 {[%emt 0:00:42]} Qxd4 {[%emt 0:03:27]} 61. Rxd4 {[%emt 0:00:01]} Re2 {[%emt 0:00:21]} 62. Ra4 {[%emt 0:01:29]} Re5 {[%emt 0:02:35]} 63. h4 {[%emt 0:01:14]} Kg6 {[%emt 0:00:42]} 64. hxg5 {[%emt 0:00:29]} Kxg5 {[%emt 0:00:01]} 65. Kg3 {[%emt 0:00:21]} Rc5 {[%emt 0:00:42]} 66. Rc4 {[%emt 0:00:56]} Re5 {[%emt 0:00:14]} 67. Kf3 {[%emt 0:00:24]} Rd5 {[%emt 0:01:22]} 68. Kg3 {[%emt 0:01:26]} Rd3+ {[%emt 0:00:37]} 69. Kh2 {[%emt 0:01:29]} Rd2 {[%emt 0:01:23]} 70. Ra4 {[%emt 0:00:13]} f4 {[%emt 0:00:21]} 71. Rxa5+ {[%emt 0:00:22]} Kg4 {[%emt 0:00:02]} 72. Kg1 {[%emt 0:00:52]} f3 {[%emt 0:01:00]} 73. Bf1 {[%emt 0:00:14]} h4 {[%emt 0:00:27]} 74. Ra8 {[%emt 0:00:18]} f2+ {[%emt 0:01:05]} 75. Kh2 {[%emt 0:00:52]} Rb2 {[%emt 0:00:32]} 76. a4 {[%emt 0:01:03]} Rxb3 {[%emt 0:00:49]} 77. a5 {[%emt 0:00:20]} Rb1 {[%emt 0:02:02]} 78. Bh3+ {[%emt 0:00:35]} Kh5 {[%emt 0:00:15]} 79. a6 {[%emt 0:00:21]} f1=Q {[%emt 0:01:36]} 80. Bxf1 {[%emt 0:00:06]} Rxf1 {[%emt 0:00:04]} 81. a7 {[%emt 0:00:14]} 1-0

[Event "WSCC 50 Open 2017"]
[Site "?"]
[Date "2017.11.10"]
[Round "4"]
[White "Van den Bersselaar, Jeroen"]
[Black "Welling, Gerard"]
[Result "1/2-1/2"]
[ECO "E09"]
[WhiteElo "2189"]
[BlackElo "2316"]
[PlyCount "65"]
[EventDate "2017.??.??"]
[EventType "swiss"]
[EventCountry "ITA"]
[SourceTitle "Acqui Terme"]
[TimeControl "40/5400+30:1800+30"]

1. d4 d5 2. Nf3 Nf6 3. c4 c6 4. Nbd2 e6 5. g3 Be7 6. Bg2 O-O 7. O-O Nbd7 8. Qc2 b6 9. e4 Bb7 10. e5 Ne8 11. Re1 Nc7 12. b3 c5 13. a4 a5 14. Ba3 Na6 15. Rad1 Nb4 16. Qb1 Qc7 17. Bb2 Rac8 18. h4 Rfd8 19. Kh2 cxd4 20. Bxd4 dxc4 21. Nxc4 Bd5 22. Ne3 Bxf3 23. Bxf3 Bc5 24. Nc4 Nf8 25. Bxc5 Qxc5 26. Kg2 Nd5 27. Rd3 Qb4 28. Nd6 Rc3 29. Re4 Qa3 30. Re1 Qb4 31. Re4 Qa3 32. Re1 Qb4 33. Re4 1/2-1/2

[Event "WSCC 50 Open 2017"]
[Site "?"]
[Date "2017.11.11"]
[Round "5"]
[White "Reprintsev, Alexander"]
[Black "Vaglio Munoz, Jaime"]
[Result "1-0"]
[ECO "B10"]
[WhiteElo "2361"]
[BlackElo "2170"]
[PlyCount "53"]
[EventDate "2017.??.??"]
[EventType "swiss"]
[EventCountry "ITA"]
[SourceTitle "Acqui Terme"]
[TimeControl "40/5400+30:1800+30"]
[WhiteClock "1:00:54"]
[BlackClock "0:26:55"]

1. e4 {[%emt 0:04:02]} c6 {[%emt 0:00:04]} 2. b3 {[%emt 0:00:12]} Qa5 {[%emt 0:00:45]} 3. Bb2 {[%emt 0:00:33]} Nf6 {[%emt 0:00:07]} 4. e5 {[%emt 0:00:26]} Ng8 {[%emt 0:01:32]} 5. Nf3 {[%emt 0:00:25]} d5 {[%emt 0:00:07]} 6. exd6 {[%emt 0:01:44]} exd6 {[%emt 0:00:11]} 7. Bd3 {[%emt 0:00:25]} Be6 {[%emt 0:00:55]} 8. O-O {[%emt 0:00:12]} Nd7 {[%emt 0:00:10]} 9. Nd4 {[%emt 0:00:51]} O-O-O {[%emt 0:10:14]} 10. Re1 {[%emt 0:00:18]} Ngf6 {[%emt 0:02:47]} 11. Nxe6 {[%emt 0:01:18]} fxe6 {[%emt 0:00:10]} 12. Rxe6 {[%emt 0:00:35]} Qg5 {[%emt 0:00:53]} 13. Qf3 {[%emt 0:05:30]} d5 {[%emt 0:04:53]} 14. Qg3 {[%emt 0:00:53]} Qxg3 {[%emt 0:01:00]} 15. hxg3 {[%emt 0:00:02]} Bc5 {[%emt 0:01:06]} 16. Nc3 {[%emt 0:01:23]} Kc7 {[%emt 0:06:40]} 17. Rae1 {[%emt 0:05:39]} h5 {[%emt 0:00:39]} 18. Na4 {[%emt 0:01:31]} Bd6 {[%emt 0:05:02]} 19. Bf5 {[%emt 0:01:02]} b5 {[%emt 0:04:20]} 20. Nc3 {[%emt 0:00:08]} h4 {[%emt 0:21:30]} 21. g4 {[%emt 0:00:17]} g6 {[%emt 0:00:25]} 22. Bxg6 {[%emt 0:05:47]} Rhg8 {[%emt 0:03:33]} 23. Nxb5+ {[%emt 0:02:14]} cxb5 {[%emt 0:00:11]} 24. Bxf6 {[%emt 0:00:01]} Rdf8 {[%emt 0:04:53]} 25. Bxh4 {[%emt 0:04:15]} Rc8 {[%emt 0:04:09]} 26. Bf5 {[%emt 0:02:23]} Rh8 {[%emt 0:00:19]} 27. Rxd6 1-0

[Event "WSCC 50 Open 2017"]
[Site "?"]
[Date "2017.11.11"]
[Round "5"]
[White "Jhunjhnuwala, Krishan"]
[Black "Fritsch, Rolf"]
[Result "*"]
[ECO "B06"]
[WhiteElo "2340"]
[BlackElo "2213"]
[PlyCount "104"]
[EventDate "2017.??.??"]
[EventType "swiss"]
[EventCountry "ITA"]
[SourceTitle "Acqui Terme"]
[TimeControl "40/5400+30:1800+30"]

1. e4 g6 2. d4 Bg7 3. Nc3 d6 4. Bc4 e6 5. Nf3 a6 6. a4 b6 7. O-O Ne7 8. Re1 h6 9. Bf4 O-O 10. Qd2 Kh7 11. Rad1 Bb7 12. h4 Nd7 13. Bd3 e5 14. dxe5 Nxe5 15. Nxe5 dxe5 16. Bg3 Qd4 17. Kh2 h5 18. Bf1 Bc6 19. f3 Qxd2 20. Rxd2 Bh6 21. Rdd1 f6 22. b4 Rfd8 23. Rxd8 Rxd8 24. Bxa6 Ra8 25. Bb5 Bd2 26. Rd1 Bxb5 27. Rxd2 Be8 28. b5 Kg7 29. f4 exf4 30. Bxf4 Kf7 31. Rd4 Ke6 32. Nd5 Nxd5 33. exd5+ Kd7 34. d6 c6 35. Re4 cxb5 36. axb5 Ra5 37. c4 Ra4 38. Re7+ Kd8 39. Be3 Bd7 40. Bxb6+ Kc8 41. c5 Rxh4+ 42. Kg1 Bxb5 43. c6 Bxc6 44. Rc7+ Kd8 45. Rxc6+ Kd7 46. Bf2 Ra4 47. Rb6 Rc4 48. Bg3 h4 49. Bh2 Rc1+ 50. Kf2 Rc2+ 51. Kf3 h3 52. Rb7+ Ke8 *

[Event "WSCC 50 Open 2017"]
[Site "?"]
[Date "2017.11.11"]
[Round "5"]
[White "Welling, Gerard"]
[Black "Verrascina, Roberto"]
[Result "1-0"]
[ECO "B02"]
[WhiteElo "2316"]
[BlackElo "2152"]
[PlyCount "51"]
[EventDate "2017.??.??"]
[EventType "swiss"]
[EventCountry "ITA"]
[SourceTitle "Acqui Terme"]
[TimeControl "40/5400+30:1800+30"]
[WhiteClock "0:35:30"]
[BlackClock "0:19:32"]

1. e4 {[%emt 0:00:00]} Nf6 {[%emt 0:00:36]} 2. d3 {[%emt 0:00:00]} d5 {[%emt 0:00:33]} 3. e5 {[%emt 0:00:35]} Nfd7 {[%emt 0:01:44]} 4. f4 {[%emt 0:00:05]} e6 {[%emt 0:01:54]} 5. Nf3 {[%emt 0:00:12]} c5 {[%emt 0:01:00]} 6. Be2 {[%emt 0:01:40]} f6 {[%emt 0:01:03]} 7. O-O {[%emt 0:00:33]} Nc6 {[%emt 0:00:25]} 8. c3 {[%emt 0:10:01]} fxe5 {[%emt 0:03:45]} 9. fxe5 {[%emt 0:00:44]} Ndxe5 {[%emt 0:03:30]} 10. Nxe5 {[%emt 0:00:03]} Nxe5 {[%emt 0:00:22]} 11. d4 {[%emt 0:00:12]} Nc6 {[%emt 0:13:58]} 12. Bd3 {[%emt 0:08:23]} g6 {[%emt 0:03:26]} 13. Qg4 {[%emt 0:08:39]} Be7 {[%emt 0:03:31]} 14. Bh6 {[%emt 0:03:41]} cxd4 {[%emt 0:02:05]} 15. Qf4 {[%emt 0:11:44]} Qb6 {[%emt 0:02:34]} 16. Bg7 {[%emt 0:07:26]} dxc3+ {[%emt 0:07:13]} 17. Kh1 {[%emt 0:00:01]} cxb2 {[%emt 0:02:09]} 18. Bxh8 {[%emt 0:00:09]} bxa1=Q {[%emt 0:03:36]} 19. Bxa1 {[%emt 0:02:26]} Kd7 {[%emt 0:10:45]} 20. Qf7 {[%emt 0:03:17]} Qe3 {[%emt 0:10:02]} 21. Bb5 {[%emt 0:03:06]} a6 {[%emt 0:00:23]} 22. Bxc6+ {[%emt 0:01:35]} bxc6 {[%emt 0:00:44]} 23. Bf6 {[%emt 0:00:21]} Qc5 {[%emt 0:01:27]} 24. Qxh7 {[%emt 0:01:33]} Rb8 {[%emt 0:03:11]} 25. Nd2 {[%emt 0:00:34]} Ke8 {[%emt 0:03:32]} 26. Bxe7 1-0